[Event "*** SCC Grand Prix: Titled Tuesday Blitz"]
[Site "Chess.com"]
[Date "2020.07.21"]
[Round "1"]
[White "diablanni"]
[Black "chessplayer9919"]
[Result "1-0"]
[WhiteElo "2335"]
[BlackElo "2632"]
[TimeControl "180+1"]
[EndTime "10:07:44 PDT"]
[Termination "diablanni won by checkmate"]

1. e4 {[%clk 0:02:59.7]} 1... c6 {[%clk 0:02:59]} 2. d4 {[%clk 0:02:59.5]} 2...
d5 {[%clk 0:02:56.9]} 3. Nc3 {[%clk 0:02:58.7]} 3... dxe4 {[%clk 0:02:56.6]} 4.
Nxe4 {[%clk 0:02:55.7]} 4... Bf5 {[%clk 0:02:56.6]} 5. Ng3 {[%clk 0:02:54.4]}
5... Bg6 {[%clk 0:02:55.8]} 6. h4 {[%clk 0:02:52.6]} 6... h6 {[%clk 0:02:55.3]}
7. Nf3 {[%clk 0:02:52]} 7... e6 {[%clk 0:02:32.3]} 8. Ne5 {[%clk 0:02:36]} 8...
Bh7 {[%clk 0:02:28.6]} 9. Bd3 {[%clk 0:02:35.4]} 9... Bxd3 {[%clk 0:02:17.7]}
10. Qxd3 {[%clk 0:02:36.3]} 10... Nd7 {[%clk 0:02:16.4]} 11. f4 {[%clk
0:02:35.7]} 11... Be7 {[%clk 0:02:08.1]} 12. Bd2 {[%clk 0:02:31.5]} 12... Nxe5
{[%clk 0:02:07.4]} 13. fxe5 {[%clk 0:02:26.9]} 13... Bxh4 {[%clk 0:02:07.3]} 14.
O-O-O {[%clk 0:02:23.3]} 14... Bxg3 {[%clk 0:02:06.6]} 15. Qxg3 {[%clk
0:02:22.3]} 15... Ne7 {[%clk 0:02:07.5]} 16. Qxg7 {[%clk 0:02:17.3]} 16... Rg8
{[%clk 0:02:07.3]} 17. Qh7 {[%clk 0:01:59]} 17... Qd5 {[%clk 0:02:05.1]} 18. Kb1
{[%clk 0:01:46.6]} 18... O-O-O {[%clk 0:02:04.7]} 19. Qxf7 {[%clk 0:01:43.6]}
19... Nf5 {[%clk 0:02:02.7]} 20. Bxh6 {[%clk 0:01:23.5]} 20... Rxg2 {[%clk
0:01:57]} 21. Bc1 {[%clk 0:01:21]} 21... Nxd4 {[%clk 0:01:50.1]} 22. Rh7 {[%clk
0:01:17.3]} 22... Rd7 {[%clk 0:01:40.8]} 23. Qxd7+ {[%clk 0:01:16.8]} 23... Qxd7
{[%clk 0:01:41.2]} 24. Rxd7 {[%clk 0:01:17]} 24... Kxd7 {[%clk 0:01:42.1]} 25.
Rxd4+ {[%clk 0:01:17.2]} 25... Ke7 {[%clk 0:01:43]} 26. b3 {[%clk 0:01:14.3]}
26... c5 {[%clk 0:01:41.1]} 27. Ba3 {[%clk 0:01:08.2]} 27... b6 {[%clk
0:01:40.6]} 28. Rh4 {[%clk 0:01:08.6]} 28... Rg7 {[%clk 0:01:39]} 29. b4 {[%clk
0:01:08.4]} 29... cxb4 {[%clk 0:01:36.8]} 30. Bxb4+ {[%clk 0:01:08.5]} 30... Kd7
{[%clk 0:01:36.6]} 31. Rc4 {[%clk 0:01:05.9]} 31... b5 {[%clk 0:01:36.4]} 32.
Rc3 {[%clk 0:01:04.1]} 32... Rg4 {[%clk 0:01:31.4]} 33. Bd6 {[%clk 0:01:03.8]}
33... a5 {[%clk 0:01:31.1]} 34. Rc7+ {[%clk 0:01:03.1]} 34... Kd8 {[%clk
0:01:31]} 35. Rb7 {[%clk 0:01:00.4]} 35... b4 {[%clk 0:01:30.2]} 36. Ra7 {[%clk
0:00:59]} 36... Kc8 {[%clk 0:01:06.7]} 37. Rxa5 {[%clk 0:00:58.1]} 37... Kb7
{[%clk 0:01:06.9]} 38. Rb5+ {[%clk 0:00:58.5]} 38... Kc6 {[%clk 0:01:06.8]} 39.
Rxb4 {[%clk 0:00:59]} 39... Rg1+ {[%clk 0:01:07.5]} 40. Kb2 {[%clk 0:00:59.1]}
40... Kd5 {[%clk 0:01:07.9]} 41. a4 {[%clk 0:00:57.9]} 41... Rg7 {[%clk
0:01:05.8]} 42. a5 {[%clk 0:00:57.1]} 42... Ra7 {[%clk 0:01:06]} 43. Ra4 {[%clk
0:00:55.4]} 43... Kc6 {[%clk 0:01:03.2]} 44. Kb3 {[%clk 0:00:53.5]} 44... Kb7
{[%clk 0:01:03]} 45. Bc5 {[%clk 0:00:50.7]} 45... Ra8 {[%clk 0:00:57.2]} 46. Bb6
{[%clk 0:00:49.7]} 46... Ka6 {[%clk 0:00:57]} 47. Rd4 {[%clk 0:00:48.5]} 47...
Rh8 {[%clk 0:00:55.2]} 48. Rd6 {[%clk 0:00:48.2]} 48... Rh3+ {[%clk 0:00:51.2]}
49. c3 {[%clk 0:00:47.7]} 49... Kb5 {[%clk 0:00:50.9]} 50. Bd8 {[%clk
0:00:43.4]} 50... Re3 {[%clk 0:00:49.2]} 51. Rxe6 {[%clk 0:00:41.4]} 51... Re1
{[%clk 0:00:47]} 52. a6 {[%clk 0:00:40.8]} 52... Rb1+ {[%clk 0:00:43.8]} 53. Ka2
{[%clk 0:00:39.3]} 53... Rd1 {[%clk 0:00:42.2]} 54. Rd6 {[%clk 0:00:37.6]} 54...
Rh1 {[%clk 0:00:35.9]} 55. a7 {[%clk 0:00:37.3]} 55... Rh2+ {[%clk 0:00:35.9]}
56. Kb3 {[%clk 0:00:36.8]} 56... Rh4 {[%clk 0:00:33.7]} 57. Rb6+ {[%clk
0:00:35.6]} 57... Kc5 {[%clk 0:00:31.8]} 58. a8=Q {[%clk 0:00:34.2]} 58... Rh6
{[%clk 0:00:11.4]} 59. Qa5# {[%clk 0:00:32.4]} 1-0

[Event "*** SCC Grand Prix: Titled Tuesday Blitz"]
[Site "Chess.com"]
[Date "2020.07.21"]
[Round "1"]
[White "crackcubano"]
[Black "davigator"]
[Result "0-1"]
[WhiteElo "2625"]
[BlackElo "2323"]
[TimeControl "180+1"]
[EndTime "10:07:44 PDT"]
[Termination "davigator won on time"]

1. Nf3 {[%clk 0:03:00.9]} 1... d5 {[%clk 0:02:58.9]} 2. c4 {[%clk 0:03:00.7]}
2... c6 {[%clk 0:02:58.3]} 3. Qc2 {[%clk 0:02:56.1]} 3... Nf6 {[%clk 0:02:57.8]}
4. g3 {[%clk 0:02:53]} 4... Bg4 {[%clk 0:02:57.3]} 5. Ne5 {[%clk 0:02:49.6]}
5... Bh5 {[%clk 0:02:56.2]} 6. Bg2 {[%clk 0:02:47.1]} 6... Nbd7 {[%clk
0:02:55.2]} 7. Nxd7 {[%clk 0:02:46.2]} 7... Qxd7 {[%clk 0:02:54.3]} 8. d3 {[%clk
0:02:42.6]} 8... e6 {[%clk 0:02:53.3]} 9. O-O {[%clk 0:02:41.7]} 9... Be7 {[%clk
0:02:52.9]} 10. e4 {[%clk 0:02:41.1]} 10... O-O {[%clk 0:02:52.2]} 11. e5 {[%clk
0:02:32]} 11... Ne8 {[%clk 0:02:51.1]} 12. d4 {[%clk 0:02:23.5]} 12... Bg6
{[%clk 0:02:44.9]} 13. Qb3 {[%clk 0:02:21.4]} 13... dxc4 {[%clk 0:02:42.9]} 14.
Qxc4 {[%clk 0:02:21]} 14... Nc7 {[%clk 0:02:43.3]} 15. Rd1 {[%clk 0:02:17.5]}
15... Nd5 {[%clk 0:02:41.2]} 16. Nc3 {[%clk 0:02:16.6]} 16... Rfc8 {[%clk
0:02:35.2]} 17. Ne4 {[%clk 0:02:10.9]} 17... b6 {[%clk 0:02:30.3]} 18. h4 {[%clk
0:02:07.5]} 18... h6 {[%clk 0:02:28.1]} 19. Bd2 {[%clk 0:02:03.1]} 19... a5
{[%clk 0:02:26.9]} 20. a3 {[%clk 0:02:02.4]} 20... Bf8 {[%clk 0:02:13]} 21. Rac1
{[%clk 0:02:01.6]} 21... Bh5 {[%clk 0:02:07.9]} 22. Re1 {[%clk 0:01:58.8]} 22...
Rab8 {[%clk 0:01:56]} 23. b4 {[%clk 0:01:43.9]} 23... axb4 {[%clk 0:01:51.7]}
24. axb4 {[%clk 0:01:42.6]} 24... Ra8 {[%clk 0:01:49.9]} 25. Ra1 {[%clk
0:01:41.1]} 25... Bg6 {[%clk 0:01:44.8]} 26. Kh2 {[%clk 0:01:30.7]} 26... Qb7
{[%clk 0:01:43.5]} 27. f4 {[%clk 0:01:24.9]} 27... Rxa1 {[%clk 0:01:41.6]} 28.
Rxa1 {[%clk 0:01:24.2]} 28... Ra8 {[%clk 0:01:42.3]} 29. Rc1 {[%clk 0:01:17.1]}
29... b5 {[%clk 0:01:14.8]} 30. Qb3 {[%clk 0:01:08.9]} 30... Ra4 {[%clk
0:01:12.5]} 31. Nc5 {[%clk 0:01:06.3]} 31... Bxc5 {[%clk 0:01:12.4]} 32. Rxc5
{[%clk 0:01:05.1]} 32... Qa6 {[%clk 0:01:07.8]} 33. g4 {[%clk 0:00:51.9]} 33...
h5 {[%clk 0:01:07.5]} 34. f5 {[%clk 0:00:50.9]} 34... exf5 {[%clk 0:01:05.9]}
35. gxh5 {[%clk 0:00:45.6]} 35... Bxh5 {[%clk 0:01:05.5]} 36. Bxd5 {[%clk
0:00:44.4]} 36... cxd5 {[%clk 0:01:04.9]} 37. Qxd5 {[%clk 0:00:44.2]} 37... Ra2
{[%clk 0:01:03.2]} 38. Qg2 {[%clk 0:00:37.5]} 38... Qa3 {[%clk 0:00:57.3]} 39.
Qg5 {[%clk 0:00:34.9]} 39... Qf3 {[%clk 0:00:47.6]} 40. e6 {[%clk 0:00:26.3]}
40... f6 {[%clk 0:00:34.9]} 41. Qg2 {[%clk 0:00:13]} 41... Qxg2+ {[%clk
0:00:33.7]} 42. Kxg2 {[%clk 0:00:13.9]} 42... Rxd2+ {[%clk 0:00:33.3]} 43. Kg3
{[%clk 0:00:14.5]} 43... Rxd4 {[%clk 0:00:33.5]} 44. Rxf5 {[%clk 0:00:13.7]}
44... Bg4 {[%clk 0:00:28.9]} 45. Rxb5 {[%clk 0:00:14.6]} 45... Bxe6 {[%clk
0:00:28.6]} 46. Rb6 {[%clk 0:00:14]} 46... Kf7 {[%clk 0:00:28.6]} 47. Rb7+
{[%clk 0:00:13.4]} 47... Kg6 {[%clk 0:00:28]} 48. h5+ {[%clk 0:00:13.3]} 48...
Kh6 {[%clk 0:00:27.5]} 49. Rxg7 {[%clk 0:00:14.2]} 49... Kxg7 {[%clk 0:00:27.4]}
0-1

[Event "*** SCC Grand Prix: Titled Tuesday Blitz"]
[Site "Chess.com"]
[Date "2020.07.21"]
[Round "1"]
[White "talaicito"]
[Black "fischercapa"]
[Result "1/2-1/2"]
[WhiteElo "2059"]
[BlackElo "2495"]
[TimeControl "180+1"]
[EndTime "10:07:44 PDT"]
[Termination "Game drawn by repetition"]

1. d4 {[%clk 0:03:00.9]} 1... Nf6 {[%clk 0:02:58.5]} 2. Nc3 {[%clk 0:03:00.6]}
2... c5 {[%clk 0:02:42.4]} 3. d5 {[%clk 0:02:59.2]} 3... d6 {[%clk 0:02:35.9]}
4. e4 {[%clk 0:02:59.2]} 4... g6 {[%clk 0:02:36]} 5. Nf3 {[%clk 0:02:58.4]} 5...
Bg7 {[%clk 0:02:36.5]} 6. Nd2 {[%clk 0:02:58]} 6... O-O {[%clk 0:02:36.5]} 7.
Be2 {[%clk 0:02:58.5]} 7... e6 {[%clk 0:02:34.5]} 8. O-O {[%clk 0:02:57.5]} 8...
exd5 {[%clk 0:02:34.5]} 9. exd5 {[%clk 0:02:58.3]} 9... a6 {[%clk 0:02:20.6]}
10. a4 {[%clk 0:02:57.3]} 10... Nbd7 {[%clk 0:02:21]} 11. f4 {[%clk 0:02:55.3]}
11... Re8 {[%clk 0:02:19.7]} 12. Bf3 {[%clk 0:02:55]} 12... Rb8 {[%clk
0:02:13.8]} 13. Nc4 {[%clk 0:02:47.6]} 13... Qc7 {[%clk 0:02:12.7]} 14. a5
{[%clk 0:02:46.6]} 14... b5 {[%clk 0:02:09.3]} 15. axb6 {[%clk 0:02:44.5]} 15...
Nxb6 {[%clk 0:02:10.2]} 16. Na5 {[%clk 0:02:40.3]} 16... Bf5 {[%clk 0:02:00.7]}
17. Nc6 {[%clk 0:02:17.8]} 17... Ra8 {[%clk 0:01:59.7]} 18. g4 {[%clk
0:02:14.8]} 18... Bd7 {[%clk 0:01:17.3]} 19. g5 {[%clk 0:02:08.8]} 19... Nh5
{[%clk 0:01:14.4]} 20. f5 {[%clk 0:01:49.9]} 20... Bxc6 {[%clk 0:00:52]} 21.
dxc6 {[%clk 0:01:43.6]} 21... Bd4+ {[%clk 0:00:51.8]} 22. Kh1 {[%clk 0:01:34.9]}
22... Ng7 {[%clk 0:00:52]} 23. fxg6 {[%clk 0:01:29.5]} 23... hxg6 {[%clk
0:00:48.5]} 24. Nd5 {[%clk 0:01:29.8]} 24... Nxd5 {[%clk 0:00:46.3]} 25. Bxd5
{[%clk 0:01:30.7]} 25... Nf5 {[%clk 0:00:46]} 26. Rxf5 {[%clk 0:01:22.1]} 26...
gxf5 {[%clk 0:00:45.4]} 27. g6 {[%clk 0:01:22.2]} 27... Re5 {[%clk 0:00:41]} 28.
gxf7+ {[%clk 0:01:16]} 28... Kg7 {[%clk 0:00:40.8]} 29. Qf3 {[%clk 0:01:10.8]}
29... Rxd5 {[%clk 0:00:34.6]} 30. Qxd5 {[%clk 0:01:07.5]} 30... Qxf7 {[%clk
0:00:35.4]} 31. Qxf7+ {[%clk 0:01:02.4]} 31... Kxf7 {[%clk 0:00:35.7]} 32. c7
{[%clk 0:00:55.2]} 32... Ke6 {[%clk 0:00:34.8]} 33. Rxa6 {[%clk 0:00:53.8]}
33... Rc8 {[%clk 0:00:33.8]} 34. Bf4 {[%clk 0:00:50]} 34... Be5 {[%clk
0:00:34.1]} 35. Bxe5 {[%clk 0:00:48.4]} 35... Kxe5 {[%clk 0:00:34.7]} 36. Ra7
{[%clk 0:00:47.5]} 36... Ke4 {[%clk 0:00:31.1]} 37. Kg2 {[%clk 0:00:47.2]} 37...
Ke3 {[%clk 0:00:31.1]} 38. Ra6 {[%clk 0:00:26.2]} 38... d5 {[%clk 0:00:28.6]}
39. Rc6 {[%clk 0:00:26]} 39... c4 {[%clk 0:00:29.1]} 40. c3 {[%clk 0:00:23.5]}
40... f4 {[%clk 0:00:26.1]} 41. Kf1 {[%clk 0:00:21.6]} 41... Kd2 {[%clk
0:00:22.2]} 42. h4 {[%clk 0:00:21.2]} 42... Kc2 {[%clk 0:00:22.6]} 43. h5 {[%clk
0:00:18.2]} 43... Kxb2 {[%clk 0:00:23.2]} 44. h6 {[%clk 0:00:18.5]} 44... Kxc3
{[%clk 0:00:24]} 45. h7 {[%clk 0:00:19.1]} 45... d4 {[%clk 0:00:24.7]} 46. h8=Q
{[%clk 0:00:18.1]} 46... Rxh8 {[%clk 0:00:25.2]} 47. c8=Q {[%clk 0:00:18.3]}
47... Rxc8 {[%clk 0:00:25]} 48. Rxc8 {[%clk 0:00:18.5]} 48... Kd3 {[%clk
0:00:25.4]} 49. Ke1 {[%clk 0:00:18]} 49... c3 {[%clk 0:00:25.3]} 50. Kd1 {[%clk
0:00:18]} 50... f3 {[%clk 0:00:25.4]} 51. Rf8 {[%clk 0:00:17.8]} 51... Ke3
{[%clk 0:00:26]} 52. Re8+ {[%clk 0:00:17.8]} 52... Kd3 {[%clk 0:00:23]} 53. Rf8
{[%clk 0:00:17.9]} 53... Ke3 {[%clk 0:00:23.3]} 54. Re8+ {[%clk 0:00:18]} 54...
Kd3 {[%clk 0:00:18.6]} 55. Rf8 {[%clk 0:00:18.2]} 1/2-1/2

[Event "*** SCC Grand Prix: Titled Tuesday Blitz"]
[Site "Chess.com"]
[Date "2020.07.21"]
[Round "1"]
[White "Anton_Demchenko"]
[Black "boasovietica"]
[Result "1-0"]
[WhiteElo "2827"]
[BlackElo "2414"]
[TimeControl "180+1"]
[EndTime "10:07:45 PDT"]
[Termination "Anton_Demchenko won by checkmate"]

1. e4 {[%clk 0:02:59.2]} 1... e5 {[%clk 0:02:59.7]} 2. Nf3 {[%clk 0:02:56.3]}
2... Nc6 {[%clk 0:03:00]} 3. Nc3 {[%clk 0:02:56.2]} 3... Nf6 {[%clk 0:02:59.7]}
4. d4 {[%clk 0:02:56.6]} 4... exd4 {[%clk 0:02:59.9]} 5. Nxd4 {[%clk 0:02:57.5]}
5... Bb4 {[%clk 0:02:58.6]} 6. Nxc6 {[%clk 0:02:57.5]} 6... bxc6 {[%clk
0:02:58.5]} 7. Bd3 {[%clk 0:02:58.2]} 7... d5 {[%clk 0:02:58.9]} 8. exd5 {[%clk
0:02:58.1]} 8... O-O {[%clk 0:02:59.5]} 9. O-O {[%clk 0:02:58.2]} 9... cxd5
{[%clk 0:02:59.8]} 10. h3 {[%clk 0:02:57.8]} 10... c6 {[%clk 0:02:57.6]} 11. Qf3
{[%clk 0:02:57.6]} 11... Bd6 {[%clk 0:02:56.3]} 12. Bf4 {[%clk 0:02:56.8]} 12...
Rb8 {[%clk 0:02:54.3]} 13. b3 {[%clk 0:02:55.7]} 13... Rb4 {[%clk 0:02:52]} 14.
Bxd6 {[%clk 0:02:41.8]} 14... Qxd6 {[%clk 0:02:52.9]} 15. Rfe1 {[%clk
0:02:37.6]} 15... Be6 {[%clk 0:02:49.6]} 16. Na4 {[%clk 0:02:30.5]} 16... h6
{[%clk 0:02:14.9]} 17. Rad1 {[%clk 0:02:29.5]} 17... Qb8 {[%clk 0:01:51.2]} 18.
Nc5 {[%clk 0:02:15.8]} 18... Qd6 {[%clk 0:01:31.4]} 19. Qe3 {[%clk 0:02:04.6]}
19... Re8 {[%clk 0:01:10.9]} 20. Nxe6 {[%clk 0:01:57.8]} 20... fxe6 {[%clk
0:01:01.6]} 21. Qxa7 {[%clk 0:01:55.3]} 21... e5 {[%clk 0:01:01.9]} 22. c4
{[%clk 0:01:41.6]} 22... e4 {[%clk 0:00:59]} 23. Bf1 {[%clk 0:01:41.8]} 23...
Rbb8 {[%clk 0:00:41.4]} 24. cxd5 {[%clk 0:01:38.7]} 24... cxd5 {[%clk
0:00:39.9]} 25. Qe3 {[%clk 0:01:35.7]} 25... Qe5 {[%clk 0:00:27.2]} 26. Rd2
{[%clk 0:01:13.8]} 26... Red8 {[%clk 0:00:23.7]} 27. Red1 {[%clk 0:01:14.2]}
27... Ra8 {[%clk 0:00:16.1]} 28. a4 {[%clk 0:01:12.4]} 28... Rab8 {[%clk
0:00:13.3]} 29. Bb5 {[%clk 0:01:12.2]} 29... Rd6 {[%clk 0:00:05.2]} 30. Qc5
{[%clk 0:01:04.2]} 30... Rbd8 {[%clk 0:00:04.2]} 31. a5 {[%clk 0:01:00.7]} 31...
Qe6 {[%clk 0:00:01.9]} 32. a6 {[%clk 0:00:58.7]} 32... Kh7 {[%clk 0:00:01.7]}
33. a7 {[%clk 0:00:55.8]} 33... d4 {[%clk 0:00:02.1]} 34. Bc4 {[%clk 0:00:50.1]}
34... Qe7 {[%clk 0:00:01.8]} 35. Qf5+ {[%clk 0:00:25.8]} 35... g6 {[%clk
0:00:01.6]} 36. Qa5 {[%clk 0:00:25.8]} 36... e3 {[%clk 0:00:01.3]} 37. fxe3
{[%clk 0:00:14.7]} 37... Qxe3+ {[%clk 0:00:01.4]} 38. Kh2 {[%clk 0:00:13.8]}
38... Ne4 {[%clk 0:00:02.1]} 39. Rd3 {[%clk 0:00:06.5]} 39... Qf4+ {[%clk
0:00:01.9]} 40. Kg1 {[%clk 0:00:07]} 40... Ng3 {[%clk 0:00:02]} 41. Qc7+ {[%clk
0:00:06.4]} 41... R8d7 {[%clk 0:00:01.9]} 42. Qxd7+ {[%clk 0:00:05.9]} 42...
Rxd7 {[%clk 0:00:01.8]} 43. a8=Q {[%clk 0:00:06.6]} 43... Ne2+ {[%clk 0:00:02]}
44. Kh1 {[%clk 0:00:07.2]} 44... Ng3+ {[%clk 0:00:02.1]} 45. Rxg3 {[%clk
0:00:07.5]} 45... Qxg3 {[%clk 0:00:02.7]} 46. Qg8# {[%clk 0:00:07.7]} 1-0

[Event "*** SCC Grand Prix: Titled Tuesday Blitz"]
[Site "Chess.com"]
[Date "2020.07.21"]
[Round "1"]
[White "Alexander_Zubov"]
[Black "Gerodot71"]
[Result "1-0"]
[WhiteElo "2851"]
[BlackElo "2425"]
[TimeControl "180+1"]
[EndTime "10:07:46 PDT"]
[Termination "Alexander_Zubov won by resignation"]

1. d4 {[%clk 0:02:57.9]} 1... Nf6 {[%clk 0:02:59]} 2. Nf3 {[%clk 0:02:57.5]}
2... d5 {[%clk 0:02:58.9]} 3. c4 {[%clk 0:02:56.9]} 3... e6 {[%clk 0:02:58.5]}
4. Nc3 {[%clk 0:02:56.9]} 4... dxc4 {[%clk 0:02:58.5]} 5. e4 {[%clk 0:02:56.4]}
5... b5 {[%clk 0:02:57.7]} 6. e5 {[%clk 0:02:55.2]} 6... Nd5 {[%clk 0:02:57.3]}
7. Nxb5 {[%clk 0:02:55]} 7... Nb6 {[%clk 0:02:56.8]} 8. Be2 {[%clk 0:02:51]}
8... Nc6 {[%clk 0:02:51]} 9. O-O {[%clk 0:02:50.8]} 9... Bb7 {[%clk 0:02:48.3]}
10. Bg5 {[%clk 0:02:37.8]} 10... Be7 {[%clk 0:02:43.4]} 11. Bxe7 {[%clk
0:02:37.3]} 11... Qxe7 {[%clk 0:02:44.3]} 12. Qc1 {[%clk 0:02:30.1]} 12... a6
{[%clk 0:02:34.2]} 13. Na3 {[%clk 0:02:29.5]} 13... Rd8 {[%clk 0:02:31.8]} 14.
Rd1 {[%clk 0:02:24]} 14... Na5 {[%clk 0:02:08.7]} 15. Qc3 {[%clk 0:02:22.3]}
15... Rd5 {[%clk 0:02:07.1]} 16. Nd2 {[%clk 0:01:53.8]} 16... O-O {[%clk
0:01:47.2]} 17. Bf3 {[%clk 0:01:44.3]} 17... Qd7 {[%clk 0:01:12.1]} 18. Bxd5
{[%clk 0:01:35.9]} 18... Qxd5 {[%clk 0:01:10.8]} 19. Nf3 {[%clk 0:01:04.2]}
19... Rd8 {[%clk 0:00:58.9]} 20. Rac1 {[%clk 0:01:01.8]} 20... Rd7 {[%clk
0:00:48.8]} 21. Nc2 {[%clk 0:00:54.2]} 21... Qb5 {[%clk 0:00:41]} 22. Na3 {[%clk
0:00:43.4]} 22... Qd5 {[%clk 0:00:40.4]} 23. Ne1 {[%clk 0:00:39.7]} 23... h6
{[%clk 0:00:31.3]} 24. f3 {[%clk 0:00:37.5]} 24... f6 {[%clk 0:00:17.6]} 25.
Nec2 {[%clk 0:00:29.9]} 25... Nc6 {[%clk 0:00:08.2]} 26. Ne3 {[%clk 0:00:28.2]}
26... Qa5 {[%clk 0:00:08.8]} 27. Qxa5 {[%clk 0:00:24.3]} 27... Nxa5 {[%clk
0:00:08.2]} 28. exf6 {[%clk 0:00:24.8]} 28... gxf6 {[%clk 0:00:08]} 29. Naxc4
{[%clk 0:00:24.8]} 29... Naxc4 {[%clk 0:00:07.3]} 30. Nxc4 {[%clk 0:00:24.9]}
30... Bd5 {[%clk 0:00:08]} 31. Nxb6 {[%clk 0:00:22.8]} 31... cxb6 {[%clk
0:00:08.9]} 32. a3 {[%clk 0:00:22.8]} 32... Kf7 {[%clk 0:00:07.9]} 33. Kf2
{[%clk 0:00:22.9]} 33... Kg6 {[%clk 0:00:08.2]} 34. g4 {[%clk 0:00:22.9]} 34...
f5 {[%clk 0:00:06]} 35. Kg3 {[%clk 0:00:22.4]} 35... Rf7 {[%clk 0:00:05.2]} 36.
Rc3 {[%clk 0:00:22]} 36... fxg4 {[%clk 0:00:02.1]} 37. fxg4 {[%clk 0:00:21.8]}
37... Rd7 {[%clk 0:00:01.8]} 38. Rf1 {[%clk 0:00:20.8]} 38... Kg7 {[%clk
0:00:02.4]} 39. h4 {[%clk 0:00:20.2]} 39... b5 {[%clk 0:00:02.4]} 40. Rf2 {[%clk
0:00:15.7]} 40... Re7 {[%clk 0:00:02.7]} 41. Rc8 {[%clk 0:00:14.6]} 41... Rd7
{[%clk 0:00:02.6]} 42. Rcf8 {[%clk 0:00:14.5]} 42... Rc7 {[%clk 0:00:02.1]} 43.
h5 {[%clk 0:00:14.4]} 43... Rd7 {[%clk 0:00:02.3]} 44. Kh4 {[%clk 0:00:14.3]}
44... Rc7 {[%clk 0:00:02.5]} 45. g5 {[%clk 0:00:14.3]} 1-0

[Event "*** SCC Grand Prix: Titled Tuesday Blitz"]
[Site "Chess.com"]
[Date "2020.07.21"]
[Round "1"]
[White "HanSchut"]
[Black "Rodalquilar"]
[Result "0-1"]
[WhiteElo "2313"]
[BlackElo "2644"]
[TimeControl "180+1"]
[EndTime "10:07:48 PDT"]
[Termination "Rodalquilar won by resignation"]

1. e4 {[%clk 0:03:00.7]} 1... Nf6 {[%clk 0:01:48.5]} 2. e5 {[%clk 0:03:00.4]}
2... Nd5 {[%clk 0:01:48]} 3. d4 {[%clk 0:03:01.3]} 3... d6 {[%clk 0:01:46.7]} 4.
c4 {[%clk 0:03:02.1]} 4... Nb6 {[%clk 0:01:45.7]} 5. exd6 {[%clk 0:03:03]} 5...
cxd6 {[%clk 0:01:46.6]} 6. Be3 {[%clk 0:03:03.1]} 6... g6 {[%clk 0:01:45.7]} 7.
Nc3 {[%clk 0:03:03.4]} 7... Bg7 {[%clk 0:01:46.1]} 8. Rc1 {[%clk 0:03:04.1]}
8... O-O {[%clk 0:01:46.1]} 9. b3 {[%clk 0:03:04.7]} 9... Bf5 {[%clk 0:01:46.3]}
10. Be2 {[%clk 0:03:02.3]} 10... d5 {[%clk 0:01:45.6]} 11. c5 {[%clk 0:03:01.7]}
11... Nc8 {[%clk 0:01:45.9]} 12. Nf3 {[%clk 0:03:00.3]} 12... Nc6 {[%clk
0:01:45]} 13. a3 {[%clk 0:02:56.9]} 13... Bg4 {[%clk 0:01:45.2]} 14. b4 {[%clk
0:02:55.8]} 14... e6 {[%clk 0:01:44.4]} 15. b5 {[%clk 0:02:51.9]} 15... Na5
{[%clk 0:01:44]} 16. O-O {[%clk 0:02:51.3]} 16... Ne7 {[%clk 0:01:42.9]} 17. h3
{[%clk 0:02:29.5]} 17... Bxf3 {[%clk 0:01:42.7]} 18. Bxf3 {[%clk 0:02:30.4]}
18... Nf5 {[%clk 0:01:43.6]} 19. Be2 {[%clk 0:02:21.9]} 19... Nc4 {[%clk
0:01:29.7]} 20. Bxc4 {[%clk 0:02:18.1]} 20... dxc4 {[%clk 0:01:30.6]} 21. Ne2
{[%clk 0:02:18.4]} 21... Qd5 {[%clk 0:01:29.3]} 22. a4 {[%clk 0:02:05.7]} 22...
Rfd8 {[%clk 0:01:23.9]} 23. Nf4 {[%clk 0:02:02.6]} 23... Qe4 {[%clk 0:01:21.5]}
24. Rxc4 {[%clk 0:01:53.9]} 24... e5 {[%clk 0:01:02.6]} 25. Nd3 {[%clk
0:01:15.6]} 25... exd4 {[%clk 0:00:42.9]} 26. Bg5 {[%clk 0:01:16.5]} 26... f6
{[%clk 0:00:39]} 27. Bc1 {[%clk 0:01:16.3]} 27... Nh4 {[%clk 0:00:30.2]} 28. f3
{[%clk 0:01:12.1]} 28... Qe6 {[%clk 0:00:26.6]} 29. Qc2 {[%clk 0:01:09.7]} 29...
Nf5 {[%clk 0:00:24.2]} 30. Re1 {[%clk 0:01:07]} 30... Qf7 {[%clk 0:00:24.5]} 31.
c6 {[%clk 0:01:05.4]} 31... bxc6 {[%clk 0:00:25.4]} 32. bxc6 {[%clk 0:01:04.7]}
32... Rac8 {[%clk 0:00:20.4]} 33. Rc5 {[%clk 0:00:50.5]} 33... Bf8 {[%clk
0:00:19.9]} 34. Rc4 {[%clk 0:00:48.1]} 34... Qd5 {[%clk 0:00:17.5]} 35. Nf4
{[%clk 0:00:46.6]} 35... Qa5 {[%clk 0:00:16.1]} 36. Bd2 {[%clk 0:00:45.3]} 36...
Qa6 {[%clk 0:00:16.2]} 37. Ne6 {[%clk 0:00:45.2]} 37... Re8 {[%clk 0:00:14.4]}
38. Nxf8 {[%clk 0:00:44.7]} 38... Rxe1+ {[%clk 0:00:12.5]} 39. Bxe1 {[%clk
0:00:45.3]} 39... Kxf8 {[%clk 0:00:13.4]} 40. Bb4+ {[%clk 0:00:44]} 40... Kg7
{[%clk 0:00:13.4]} 41. Qe4 {[%clk 0:00:41.1]} 41... Qxc4 {[%clk 0:00:08.9]} 42.
g4 {[%clk 0:00:41.8]} 42... Ne3 {[%clk 0:00:05.1]} 43. Qe7+ {[%clk 0:00:38.3]}
43... Kg8 {[%clk 0:00:05.5]} 44. Kf2 {[%clk 0:00:32.5]} 44... Qf1+ {[%clk
0:00:05.1]} 45. Kg3 {[%clk 0:00:33.3]} 45... Qg2+ {[%clk 0:00:05.3]} 46. Kf4
{[%clk 0:00:33.9]} 46... Nd5+ {[%clk 0:00:04.5]} 47. Ke4 {[%clk 0:00:33.7]}
47... Nxe7 {[%clk 0:00:05.4]} 48. Bxe7 {[%clk 0:00:34]} 48... Qe2+ {[%clk
0:00:05.3]} 49. Kd5 {[%clk 0:00:34.9]} 49... Qxe7 {[%clk 0:00:06.2]} 50. Kxd4
{[%clk 0:00:34.5]} 50... Qd6+ {[%clk 0:00:06.5]} 0-1